Workbook

Sheet Start
B2: Equity Option Models, by Jan Röman

Sheet Sim
C1: Naked | F1: Covered
C2: 1 short | D2: 2 -> 395 | F2: 1 short | G2: Long S | H2: 2 - > 360 | I2: 2 - > 380
B3: Call | C3: TRUE | D3: TRUE | F3: TRUE
B4: S | C4: 365 | D4: 395 | F4: 365 | G4: 365 | H4: 360 | I4: 380
B5: K | C5: 370 | D5: 370 | F5: 370 | I5: 370
B6: T | C6: 0.25 | F6: 0.25
B7: r | C7: 0.07 | F7: 0.07
B8: vol | C8: 0.2 | F8: 0.2
B10: Value | C10: =GBlackScholes(C3,C4,C5,C6,C7,C7,C8) -> 15.24738325 | D10: =D5-D4 -> -25 | F10: =GBlackScholes(F3,F4,F5,F6,F7,F7,F8) -> 15.24738325
B12: N | C12: 100000 | D12: 100000 | F12: 100000 | G12: 100000 | H12: 100000 | I12: 100000
B14: Value | C14: =C12*C10 -> 1524738.325 | D14: =(D5-D4)*D12 -> -2500000 | F14: =F12*F10 -> 1524738.325 | G14: =-G12*G4 -> -36500000 | H14: =H12*H4 -> 36000000 | I14: =I12*I5 -> 37000000
D15: Resultat | H15: Resultat | I15: Resultat
D16: =D14+C14 -> -975261.6746 | F16: Total | G16: =F14+G14 -> -34975261.67 | H16: =G16+H14 -> 1024738.325 | I16: =I14+G14+F14 -> 2024738.325
B22: Call | C22: TRUE | D22: FALSE | E22: Stock | F22: TRUE | G22: FALSE | H22: Stock | J22: TRUE | K22: FALSE | L22: Stock | M22: TRUE | N22: FALSE | O22: Stock | Q22: TRUE | R22: FALSE | S22: Stock | T22: TRUE | U22: FALSE | V22: Stock
B23: S | C23: 35 | D23: =C23 -> 35 | E23: =C23 -> 35 | F23: =C23 -> 35 | G23: =C23 -> 35 | H23: =C23 -> 35 | J23: 30 | K23: =J23 -> 30 | L23: =J23 -> 30 | M23: =J23 -> 30 | N23: =J23 -> 30 | O23: =J23 -> 30 | Q23: 40 | R23: =Q23 -> 40 | S23: =Q23 -> 40 | T23: =Q23 -> 40 | U23: =Q23 -> 40 | V23: =Q23 -> 40
B24: K | C24: 30 | D24: 37 | F24: =D24 -> 37 | G24: =C24 -> 30 | J24: 30 | K24: 37 | M24: =K24 -> 37 | N24: =J24 -> 30 | Q24: 30 | R24: 37 | T24: =R24 -> 37 | U24: =Q24 -> 30
A25: 102 days | B25: T | C25: =102/365 -> 0.2794520548 | D25: =C25 -> 0.2794520548 | F25: =C25 -> 0.2794520548 | G25: 0.2794520548 | J25: =102/365 -> 0.2794520548 | K25: =J25 -> 0.2794520548 | M25: =J25 -> 0.2794520548 | N25: 0.2794520548 | Q25: =102/365 -> 0.2794520548 | R25: =Q25 -> 0.2794520548 | T25: =Q25 -> 0.2794520548 | U25: 0.2794520548
B26: r | C26: 0.045 | D26: =C26 -> 0.045 | F26: 0.045 | G26: 0.045 | J26: 0.045 | K26: =J26 -> 0.045 | M26: 0.045 | N26: 0.045 | Q26: 0.045 | R26: =Q26 -> 0.045 | T26: 0.045 | U26: 0.045
B27: vol | C27: 0.375 | D27: =C27 -> 0.375 | F27: 0.375 | G27: 0.375 | J27: 0.375 | K27: =J27 -> 0.375 | M27: 0.375 | N27: 0.375 | Q27: 0.375 | R27: =Q27 -> 0.375 | T27: 0.375 | U27: 0.375
B28: N | C28: =E28/(C31*D30/D31-C30) -> -847.1717263 | D28: =-C28*C31/D31 -> 548.3344719 | E28: 1000 | F28: =H28/(F31*G30/G31-F30) -> -1386.41183 | G28: =-F28*F31/G31 -> 2141.993552 | H28: =E28 -> 1000 | J28: =C28 -> -847.1717263 | K28: =D28 -> 548.3344719 | L28: 1000 | M28: =F28 -> -1386.41183 | N28: =G28 -> 2141.993552 | O28: =L28 -> 1000 | Q28: =J28 -> -847.1717263 | R28: =K28 -> 548.3344719 | S28: 1000 | T28: =M28 -> -1386.41183 | U28: =N28 -> 2141.993552 | V28: =S28 -> 1000
B29: Value | C29: =GBlackScholes(C22,C23,C24,C25,C26,C26,C27) -> 6.08616082 | D29: =GBlackScholes(D22,D23,D24,D25,D26,D26,D27) -> 3.658904225 | E29: =E28*E23 -> 35000 | F29: =GBlackScholes(F22,F23,F24,F25,F26,F26,F27) -> 2.121278545 | G29: =GBlackScholes(G22,G23,G24,G25,G26,G26,G27) -> 0.7112627225 | H29: =E29 -> 35000 | J29: =GBlackScholes(J22,J23,J24,J25,J26,J26,J27) -> 2.546043432 | K29: =GBlackScholes(K22,K23,K24,K25,K26,K26,K27) -> 7.088484649 | L29: =L28*L23 -> 30000 | M29: =GBlackScholes(M22,M23,M24,M25,M26,M26,M27) -> 0.5508589695 | N29: =GBlackScholes(N22,N23,N24,N25,N26,N26,N27) -> 2.171145334 | O29: =L29 -> 30000 | Q29: =GBlackScholes(Q22,Q23,Q24,Q25,Q26,Q26,Q27) -> 10.56762316 | R29: =GBlackScholes(R22,R23,R24,R25,R26,R26,R27) -> 1.598841708 | S29: =S28*S23 -> 40000 | T29: =GBlackScholes(T22,T23,T24,T25,T26,T26,T27) -> 5.061216028 | U29: =GBlackScholes(U22,U23,U24,U25,U26,U26,U27) -> 0.1927250661 | V29: =S29 -> 40000
B30: Delta | C30: =GDelta(C22,C23,C24,C25,C26,C26,C27) -> 0.8264327812 | D30: =GDelta(D22,D23,D24,D25,D26,D26,D27) -> -0.5468733581 | F30: =GDelta(F22,F23,F24,F25,F26,F26,F27) -> 0.4531266419 | G30: =GDelta(G22,G23,G24,G25,G26,G26,G27) -> -0.1735672188 | J30: =GDelta(J22,J23,J24,J25,J26,J26,J27) -> 0.5645653601 | K30: =GDelta(K22,K23,K24,K25,K26,K26,K27) -> -0.8147062365 | M30: =GDelta(M22,M23,M24,M25,M26,M26,M27) -> 0.1852937635 | N30: =GDelta(N22,N23,N24,N25,N26,N26,N27) -> -0.4354346399 | Q30: =GDelta(Q22,Q23,Q24,Q25,Q26,Q26,Q27) -> 0.9467098676 | R30: =GDelta(R22,R23,R24,R25,R26,R26,R27) -> -0.289163998 | T30: =GDelta(T22,T23,T24,T25,T26,T26,T27) -> 0.710836002 | U30: =GDelta(U22,U23,U24,U25,U26,U26,U27) -> -0.05329013244
B31: Gamma | C31: =GGamma(C23,C24,C25,C26,C26,C27) -> 0.03695895062 | D31: =GGamma(D23,D24,D25,D26,D26,D27) -> 0.05710123949 | F31: =GGamma(F23,F24,F25,F26,F26,F27) -> 0.05710123949 | G31: =GGamma(G23,G24,G25,G26,G26,G27) -> 0.03695895062 | J31: =GGamma(J23,J24,J25,J26,J26,J27) -> 0.06620122174 | K31: =GGamma(K23,K24,K25,K26,K26,K27) -> 0.04492813191 | M31: =GGamma(M23,M24,M25,M26,M26,M27) -> 0.04492813191 | N31: =GGamma(N23,N24,N25,N26,N26,N27) -> 0.06620122174 | Q31: =GGamma(Q23,Q24,Q25,Q26,Q26,Q27) -> 0.01368258532 | R31: =GGamma(R23,R24,R25,R26,R26,R27) -> 0.04311004658 | T31: =GGamma(T23,T24,T25,T26,T26,T27) -> 0.04311004658 | U31: =GGamma(U23,U24,U25,U26,U26,U27) -> 0.01368258532
B32: Vega | C32: =GVega(C23,C24,C25,C26,C26,C27) -> 4.744542 | D32: =GVega(D23,D24,D25,D26,D26,D27) -> 7.330273843 | F32: =GVega(F23,F24,F25,F26,F26,F27) -> 7.330273843 | G32: =GVega(G23,G24,G25,G26,G26,G27) -> 4.744542 | J32: =GVega(J23,J24,J25,J26,J26,J27) -> 6.243772763 | K32: =GVega(K23,K24,K25,K26,K26,K27) -> 4.237399839 | M32: =GVega(M23,M24,M25,M26,M26,M27) -> 4.237399839 | N32: =GVega(N23,N24,N25,N26,N26,N27) -> 6.243772763 | Q32: =GVega(Q23,Q24,Q25,Q26,Q26,Q27) -> 2.29417595 | R32: =GVega(R23,R24,R25,R26,R26,R27) -> 7.228314659 | T32: =GVega(T23,T24,T25,T26,T26,T27) -> 7.228314659 | U32: =GVega(U23,U24,U25,U26,U26,U27) -> 2.29417595
B34: Value | C34: =C28*C29 -> -5156.023368 | D34: =D28*D29 -> 2006.303316 | E34: =E29 -> 35000 | F34: =F28*F29 -> -2940.965669 | G34: =G28*G29 -> 1523.520165 | H34: =H29 -> 35000 | J34: =J28*J29 -> -2156.936009 | K34: =K28*K29 -> 3886.860487 | L34: =L29 -> 30000 | M34: =M28*M29 -> -763.7173918 | N34: =N28*N29 -> 4650.579306 | O34: =O29 -> 30000 | Q34: =Q28*Q29 -> -8952.591559 | R34: =R28*R29 -> 876.7000238 | S34: =S29 -> 40000 | T34: =T28*T29 -> -7016.929774 | U34: =U28*U29 -> 412.815849 | V34: =V29 -> 40000
D35: Total | E35: =E34+C34+D34 -> 31850.27995 | G35: Total | H35: =H34+F34+G34 -> 33582.5545 | K35: Total | L35: =L34+J34+K34 -> 31729.92448 | N35: Total | O35: =O34+M34+N34 -> 33886.86191 | R35: Total | S35: =S34+Q34+R34 -> 31924.10847 | U35: Total | V35: =V34+T34+U34 -> 33395.88607

Sheet Doc
B2: CND(X)
B3: nd(X)
B4: probBS(mCall, S, X, T, r, b, vol)
B5: GBlackScholes(mCall, S, X, T, r, b, vol)
B6: GDelta(mCall, S, X, T, r, b, vol)
B7: GGamma(S, X, T, r, b, vol)
B8: GVega(S, X, T, r, b, vol)
B9: GTheta(mCall, S, X, T, r, b, vol)
B10: GRho(mCall, S, X, T, r, b, vol)
B11: ImpliedVolatility((mCall, S, X, T, r, b, SimVal)
B12: RollGeskeWhaley(S, X, vol, r, t, Dividend, TDiv)
B13: BaroneAdesiWhaleyCall(S, X, vol, r, t, b)
B14: BaroneAdesiWhaleyPut(S, X, vol, r, t, b)
B15: BjerksundStenslandCall(S, X, vol, r, t, b)
B16: BjerksundStenslandPut(S, X, vol, r, t, b)
B17: Binom(mBin, mTyp, mExe, S, X, t, r, vol, n, mDelta, mGamma, mTheta)
B19: CRR = 0
B20: CRRBS = 1
B21: CRRBSRE = 2
B22: CRROM = 3
B23: CRRORC = 4
B24: CRRORCBS = 5
B25: CRRORCBSRE = 6
B26: JR = 7
B27: TIAN = 8
B28: LR = 9
B29: LRRE = 10
B30: PEG = 11
B31: PEGBS = 12
B32: PEGBSRE = 13
B34: PUT_ = 0
B35: CALL_ = 1
B37: EUROPEAN = 0
B38: AMERICAN = 1
B40: Public Const mCall As Long = 1
B41: Public Const mPUT As Long = 0
